bitfinex/quotes_BTCUSD_20250529
["timestamp","ask_amount","ask_price","bid_price","bid_amount"]
[1748507238375,0.03553594,108130.0,108120.0,1.40627959]
[1748507238595,0.03553594,108130.0,108120.0,1.38912373]
[1748507238805,0.03553594,108130.0,108120.0,1.40626429]
[1748507239535,0.03553594,108130.0,108120.0,1.38776714]
[1748507239768,0.21270657,108130.0,108120.0,1.21065419]
[1748507239984,0.2034587,108130.0,108120.0,1.21065419]
[1748507240446,0.19421066,108130.0,108120.0,1.20140122]
[1748507240655,0.19421066,108130.0,108120.0,1.20140003]
[1748507240870,0.19421066,108130.0,108120.0,1.20139716]
[1748507241083,0.19421066,108130.0,108120.0,0.9003414]
[1748507241305,0.19421066,108130.0,108120.0,0.9003419]
[1748507241821,0.18496254,108130.0,108120.0,1.24033857]
[1748507242041,0.17421066,108130.0,108120.0,1.24033857]
[1748507242696,0.17421066,108130.0,108120.0,1.22982813]
[1748507242922,0.17421066,108130.0,108120.0,1.22982536]
[1748507243601,0.17421066,108130.0,108120.0,1.59904321]
[1748507243824,0.17421066,108130.0,108120.0,1.59121662]
[1748507244041,0.17421066,108130.0,108120.0,1.58195223]
[1748507244258,0.17421066,108130.0,108120.0,1.59907798]
[1748507244480,0.17421066,108130.0,108120.0,1.59907797]
[1748507245017,0.17421066,108130.0,108120.0,1.59907787]
[1748507245862,0.17421066,108130.0,108120.0,1.59907728]
[1748507246933,0.17421066,108130.0,108120.0,1.59907711]
[1748507247687,0.17421066,108130.0,108120.0,1.69907711]
[1748507247919,0.17421066,108130.0,108120.0,1.69907745]
[1748507248357,0.17421066,108130.0,108120.0,1.69907599]
[1748507249050,0.15421066,108130.0,108120.0,1.69907678]
[1748507249693,0.15421066,108130.0,108120.0,1.69907707]
[1748507250373,0.15421066,108130.0,108120.0,1.88405773]
[1748507250614,0.15421066,108130.0,108120.0,1.89278671]
[1748507250829,0.15421066,108130.0,108120.0,1.88353873]
[1748507251032,0.15421066,108130.0,108120.0,1.89278771]
[1748507251689,0.15421066,108130.0,108120.0,1.89278989]
[1748507252397,0.15421066,108130.0,108120.0,1.87566148]
[1748507252604,0.15421066,108130.0,108120.0,1.89279197]
[1748507253237,0.15421066,108130.0,108120.0,1.8927947]
[1748507253449,0.15421066,108130.0,108120.0,1.89279586]
[1748507254005,0.15421066,108130.0,108120.0,1.29058723]
[1748507254297,0.15421066,108130.0,108120.0,1.648128]
[1748507254753,0.15421066,108130.0,108120.0,1.64813574]
[1748507255197,0.15421066,108130.0,108120.0,1.63099285]
[1748507255417,0.15421066,108130.0,108120.0,1.64813574]
[1748507255843,0.15421066,108130.0,108120.0,1.64814413]
[1748507256056,0.13421066,108130.0,108120.0,1.64814413]
[1748507256266,0.13421066,108130.0,108120.0,1.65865457]
[1748507256703,0.13421066,108130.0,108120.0,1.65866613]
[1748507258066,0.13421066,108130.0,108120.0,1.65868393]
[1748507258270,0.13421066,108130.0,108120.0,1.65081047]
[1748507258483,0.13421066,108130.0,108120.0,1.63364139]
[1748507258701,0.13421066,108130.0,108120.0,1.65082258]
[1748507258927,0.13421066,108130.0,108120.0,1.65082341]
[1748507260685,0.13421066,108130.0,108120.0,1.63364139]
[1748507260929,0.13421066,108130.0,108120.0,0.12818927]
[1748507260930,0.18521066,108130.0,108120.0,0.12818927]
[1748507261138,0.52521066,108130.0,108120.0,0.12627972]
[1748507261354,0.52521066,108130.0,108120.0,0.12628134]
[1748507262058,0.52521066,108130.0,108120.0,0.12629858]
[1748507262925,0.52521066,108130.0,108120.0,0.12629237]
[1748507263133,0.50521066,108130.0,108120.0,0.21837203]
[1748507263359,0.50521066,108130.0,108120.0,0.19257095]
[1748507263575,0.50521066,108130.0,108120.0,0.21837783]
[1748507263796,0.50521066,108130.0,108120.0,0.21837785]
[1748507265509,0.50521066,108130.0,108120.0,0.21836673]
[1748507265944,0.50521066,108130.0,108120.0,0.50956673]
[1748507266196,0.50521066,108130.0,108120.0,0.12627506]
[1748507266398,0.50521066,108130.0,108120.0,0.50955506]
[1748507266615,0.50521066,108130.0,108120.0,0.50955482]
[1748507267072,0.50521066,108130.0,108120.0,0.50955007]
[1748507267936,0.50521066,108130.0,108120.0,0.50954871]
[1748507268365,0.50521066,108130.0,108120.0,0.50954605]
[1748507268573,0.50521066,108130.0,108120.0,0.50954586]
[1748507268800,0.50521066,108130.0,108120.0,0.48377095]
[1748507269005,0.50521066,108130.0,108120.0,0.50954563]
[1748507270331,0.50521066,108130.0,108120.0,0.50954208]
[1748507270771,0.50521066,108130.0,108120.0,0.50954064]
[1748507270978,0.48521066,108130.0,108120.0,0.50954064]
[1748507271174,0.48521066,108130.0,108120.0,0.50954068]
[1748507271589,0.48521066,108130.0,108120.0,0.50094912]
[1748507271791,0.48521066,108130.0,108120.0,0.50953777]
[1748507272221,0.48521066,108130.0,108120.0,0.50094825]
[1748507272437,0.48521066,108130.0,108120.0,0.5095369]
[1748507272649,0.14521066,108130.0,108120.0,0.50953659]
[1748507272861,0.48521066,108130.0,108120.0,0.50953659]
[1748507273072,0.48521066,108130.0,108120.0,0.50953524]
[1748507273291,0.48521066,108130.0,108120.0,0.50953476]
[1748507273559,0.48521066,108130.0,108120.0,0.50953463]
[1748507274033,0.48521066,108130.0,108120.0,0.50953502]
[1748507274234,0.48521066,108130.0,108120.0,0.48377095]
[1748507274439,0.48521066,108130.0,108120.0,0.50953522]
[1748507275072,0.00914178,108160.0,108150.0,0.22852022]
[1748507275318,0.00924428,108170.0,108160.0,0.24304278]
[1748507275319,0.00924402,108170.0,108160.0,0.24304278]
[1748507275464,0.18498843,108180.0,108170.0,0.0595447]
[1748507275465,0.20336432,108180.0,108170.0,0.0595447]
[1748507275615,0.20336432,108180.0,108170.0,0.08163143]
[1748507275798,0.20336432,108180.0,108170.0,0.09213363]
[1748507275994,0.01848701,108180.0,108170.0,0.295517]
[1748507276204,0.21260757,108180.0,108170.0,0.09350955]
[1748507276410,0.20336432,108180.0,108170.0,0.08531011]
[1748507276548,0.2034134,108180.0,108170.0,0.09311992]
[1748507276755,0.19416989,108180.0,108170.0,0.08387488]
[1748507276940,0.18492613,108180.0,108170.0,0.08387488]
[1748507277146,0.18492613,108180.0,108170.0,0.06676606]
[1748507277391,0.18492613,108180.0,108170.0,0.08387344]
[1748507277592,0.18492613,108180.0,108170.0,0.09311806]
[1748507277806,0.18492613,108180.0,108170.0,0.09309858]
[1748507278010,0.16492613,108180.0,108170.0,0.09309858]
[1748507278177,0.16492613,108180.0,108170.0,0.06674658]
[1748507278394,0.16492613,108180.0,108170.0,0.08384162]
[1748507279359,0.16492613,108180.0,108170.0,0.07598823]
[1748507279578,0.16492613,108180.0,108170.0,0.47597758]
[1748507279846,0.16492613,108180.0,108170.0,0.47366675]
[1748507280273,0.16492613,108180.0,108170.0,0.47366036]
[1748507280501,0.16492613,108180.0,108170.0,0.47366067]
[1748507280719,0.16492613,108180.0,108170.0,0.47365847]
[1748507281195,0.16492613,108180.0,108170.0,0.47365047]
[1748507281652,0.16492613,108180.0,108170.0,0.473642]
[1748507282008,0.16492613,108180.0,108170.0,0.45657436]
[1748507282215,0.16492613,108180.0,108170.0,0.473642]
[1748507282449,0.16492613,108180.0,108170.0,0.073642]
[1748507282623,0.16492613,108180.0,108170.0,0.07595283]
[1748507283011,0.16492613,108180.0,108170.0,0.47595283]
[1748507283215,0.16492613,108180.0,108170.0,0.47363448]
[1748507283433,0.16492613,108180.0,108170.0,0.4736318]
[1748507284073,0.16492613,108180.0,108170.0,0.45657436]
[1748507284276,0.16492613,108180.0,108170.0,0.47362774]
[1748507284704,0.16492613,108180.0,108170.0,0.4503]
[1748507284906,0.14492613,108180.0,108170.0,0.48815086]
[1748507285108,0.14492613,108180.0,108170.0,0.4881504]
[1748507285737,0.14492613,108180.0,108170.0,0.48814485]
[1748507285938,0.14492613,108180.0,108170.0,0.07110342]
[1748507286136,0.14492613,108180.0,108170.0,0.0904557]
[1748507286516,0.14492613,108180.0,108170.0,0.4904557]
[1748507286726,0.14492613,108180.0,108170.0,0.48814487]
[1748507287241,0.14492613,108180.0,108170.0,0.48814001]
[1748507287656,0.14492613,108180.0,108170.0,0.80725617]
[1748507287863,0.14492613,108180.0,108170.0,0.42329617]
[1748507288060,0.14492613,108180.0,108170.0,0.80721617]
[1748507288509,0.14492613,108180.0,108170.0,0.80721782]
[1748507288736,0.14492613,108180.0,108170.0,0.80721791]
[1748507288938,0.14492613,108180.0,108170.0,0.80721509]
[1748507289172,0.14492613,108180.0,108170.0,0.80720899]
[1748507289371,0.14492613,108180.0,108170.0,0.80095254]
[1748507289985,0.14492613,108180.0,108170.0,0.80094958]
[1748507290215,0.14492613,108180.0,108170.0,0.80094959]
[1748507290849,0.14492613,108180.0,108170.0,0.80062647]
[1748507291073,0.14492613,108180.0,108170.0,0.80062645]
[1748507292115,0.12492613,108180.0,108170.0,0.80062645]
[1748507292320,0.12492613,108180.0,108170.0,0.80062736]
[1748507292590,0.12492613,108180.0,108170.0,0.40062768]
[1748507293027,0.12492613,108180.0,108170.0,0.80038768]
[1748507293448,0.12492613,108180.0,108170.0,0.8066428]
[1748507293667,0.12492613,108180.0,108170.0,0.40664555]
[1748507294254,0.12492613,108180.0,108170.0,0.78961512]
[1748507294455,0.12492613,108180.0,108170.0,0.80665043]
[1748507295419,0.12492613,108180.0,108170.0,0.80665044]
[1748507295552,0.12492613,108180.0,108170.0,0.80665299]
[1748507295761,0.12492613,108180.0,108170.0,0.8066551]
[1748507296982,0.12492613,108180.0,108170.0,0.80666121]
[1748507297876,0.12492613,108180.0,108170.0,0.80666935]
[1748507298073,0.12492613,108180.0,108170.0,0.80606935]
[1748507298423,0.12492613,108180.0,108170.0,0.78902326]
[1748507298622,0.12492613,108180.0,108170.0,0.80607878]
[1748507298860,0.12492613,108180.0,108170.0,0.80607873]
[1748507299104,0.10492613,108180.0,108170.0,0.80607873]
[1748507299318,0.10492613,108180.0,108170.0,0.80608492]
[1748507300061,0.10492613,108180.0,108170.0,0.80609279]
[1748507300476,0.10492613,108180.0,108170.0,0.51477279]
[1748507300682,0.10492613,108180.0,108170.0,0.80585279]
[1748507301014,0.10492613,108180.0,108170.0,0.80586505]
[1748507301439,0.10592613,108180.0,108170.0,0.81588023]
[1748507302086,0.10592613,108180.0,108170.0,0.8158957]
[1748507302300,0.10592613,108180.0,108170.0,0.82374454]
[1748507303336,0.10592613,108180.0,108170.0,0.82376399]
[1748507303546,0.10592613,108180.0,108170.0,0.83427443]
[1748507303757,0.10592613,108180.0,108170.0,0.45177975]
[1748507303972,0.10592613,108180.0,108170.0,0.83433975]
[1748507304175,0.10592613,108180.0,108170.0,0.82649093]
[1748507304406,0.10592613,108180.0,108170.0,0.80934917]
[1748507304610,0.10592613,108180.0,108170.0,0.82654592]
[1748507305287,0.10592613,108180.0,108170.0,0.81603548]
[1748507305483,0.10592613,108180.0,108170.0,0.80975671]
[1748507305690,0.10592613,108180.0,108170.0,0.80975645]
[1748507306309,0.08592613,108180.0,108170.0,0.82028184]
[1748507307333,0.08592613,108180.0,108170.0,0.82028175]
[1748507307534,0.08592613,108180.0,108170.0,0.82028173]
[1748507308790,0.08592613,108180.0,108170.0,0.42028173]
[1748507309150,0.11182613,108180.0,108170.0,0.39256]
[1748507309356,0.11182613,108180.0,108170.0,0.40976064]
[1748507309770,0.11182613,108180.0,108170.0,0.50976064]
[1748507310397,0.11182613,108180.0,108170.0,0.50976091]
[1748507310600,0.11182613,108180.0,108170.0,0.50976092]
[1748507310805,0.08592613,108180.0,108170.0,0.49256]
[1748507311222,0.08592613,108180.0,108170.0,0.50976131]
[1748507312033,0.08592613,108180.0,108170.0,0.50976144]
[1748507312479,0.13842613,108180.0,108170.0,0.21868144]
[1748507312661,0.13842613,108180.0,108170.0,0.50976201]
[1748507312868,0.13842613,108180.0,108170.0,0.12720201]
[1748507313069,0.13842613,108180.0,108170.0,0.42881086]
[1748507313271,0.13842613,108180.0,108170.0,0.42881209]
[1748507313474,0.11862613,108180.0,108170.0,0.13773209]
[1748507313678,0.11862613,108180.0,108170.0,0.42881251]
[1748507313897,0.06592613,108180.0,108170.0,0.42881251]
[1748507314117,0.06592613,108180.0,108170.0,0.13773314]
[1748507314329,0.11942613,108180.0,108170.0,0.42881314]
[1748507314548,0.11942613,108180.0,108170.0,0.13773329]
[1748507314769,0.11942613,108180.0,108170.0,0.42881332]
[1748507314970,0.11942613,108180.0,108170.0,0.4288135]
[1748507315210,0.11942613,108180.0,108170.0,0.42881351]
[1748507315422,0.11942613,108180.0,108170.0,0.41160885]
[1748507315629,0.09312613,108180.0,108170.0,0.42881352]
[1748507316025,0.12052613,108180.0,108170.0,0.41160885]
[1748507316254,0.12052613,108180.0,108170.0,0.42881403]
[1748507316375,0.12052613,108180.0,108170.0,0.42881567]
[1748507316585,0.12052613,108180.0,108170.0,0.42881499]
[1748507316809,0.09312613,108180.0,108170.0,0.42881499]
[1748507317013,0.06592613,108180.0,108170.0,0.42881499]
[1748507317662,0.11762613,108180.0,108170.0,0.42881702]
[1748507317896,0.45762613,108180.0,108170.0,0.13773702]
[1748507318064,0.45762613,108180.0,108170.0,0.1351076]
[1748507318289,0.45762613,108180.0,108170.0,0.11789943]
[1748507318618,0.45762613,108180.0,108170.0,0.13510997]
[1748507319054,0.09212613,108180.0,108170.0,0.14563828]
[1748507319465,0.09212613,108180.0,108170.0,0.14563354]
[1748507320308,0.11892613,108180.0,108170.0,0.14563351]
[1748507320491,0.09892613,108180.0,108170.0,0.14563351]
[1748507320705,0.09892613,108180.0,108170.0,0.13510466]
[1748507321249,0.09892613,108180.0,108170.0,0.13510251]
[1748507321451,0.09892613,108180.0,108170.0,0.11789796]
[1748507321652,0.09892613,108180.0,108170.0,0.13510099]
[1748507322932,0.09892613,108180.0,108170.0,0.13474293]
[1748507323135,0.09892613,108180.0,108170.0,0.13474286]
[1748507323345,0.09892613,108180.0,108170.0,0.13474285]
[1748507323768,0.09892613,108180.0,108170.0,0.1347386]
[1748507324386,0.09892613,108180.0,108170.0,0.13473866]
[1748507324573,0.09892613,108180.0,108170.0,0.13473818]
[1748507324980,0.09892613,108180.0,108170.0,0.13473831]
[1748507326372,0.04592613,108180.0,108170.0,0.13473809]
[1748507326850,0.07242613,108180.0,108170.0,0.13473809]
[1748507327054,0.07242613,108180.0,108170.0,0.13473745]
[1748507327480,0.09912613,108180.0,108170.0,0.13473745]
[1748507327886,0.09912613,108180.0,108170.0,0.13473734]
[1748507328095,0.05424908,108180.0,108170.0,0.13473677]
[1748507328219,0.23912613,108180.0,108170.0,0.13473676]
[1748507328418,0.18592613,108180.0,108170.0,0.13473664]
[1748507328619,0.23652613,108180.0,108170.0,0.13473664]
[1748507329469,0.23652613,108180.0,108170.0,0.13473592]
[1748507329908,0.18592613,108180.0,108170.0,0.13473592]
[1748507330123,0.18592613,108180.0,108170.0,0.11753635]
[1748507330390,0.18592613,108180.0,108170.0,0.13473592]
[1748507330830,0.18592613,108180.0,108170.0,0.1347357]
[1748507331622,0.18592613,108180.0,108170.0,0.13473566]
[1748507332041,0.21132613,108180.0,108170.0,0.13473608]
[1748507332666,0.21132613,108180.0,108170.0,0.11753635]
[1748507332895,0.21132613,108180.0,108170.0,0.13473592]
[1748507333745,0.18592613,108180.0,108170.0,0.13473609]
[1748507333949,0.21352613,108180.0,108170.0,0.42577609]
[1748507334169,0.23982613,108180.0,108170.0,0.42577609]
[1748507334843,0.23982613,108180.0,108170.0,0.4257762]
[1748507335050,0.21352613,108180.0,108170.0,0.4257762]
[1748507335258,0.21352613,108180.0,108170.0,0.4085765]
[1748507335909,0.16592613,108180.0,108170.0,0.4085765]
[1748507336128,0.21992613,108180.0,108170.0,0.42577662]
[1748507336338,0.21992613,108180.0,108170.0,0.4085765]
[1748507336543,0.21992613,108180.0,108170.0,0.42577662]
[1748507336793,0.21992613,108180.0,108170.0,0.4085765]
[1748507336996,0.21992613,108180.0,108170.0,0.42577653]
[1748507337636,0.21992613,108180.0,108170.0,0.4085765]
[1748507338557,0.16592613,108180.0,108170.0,0.4085765]
[1748507339174,0.21842613,108180.0,108170.0,0.1175365]
[1748507339388,0.21842613,108180.0,108170.0,0.1347378]
[1748507339595,0.21842613,108180.0,108170.0,0.13473877]
[1748507340010,0.21842613,108180.0,108170.0,0.1175365]
[1748507340223,0.21842613,108180.0,108170.0,0.13473888]
[1748507340650,0.16592613,108180.0,108170.0,0.13474135]
[1748507341299,0.19162613,108180.0,108170.0,0.13474135]
[1748507341726,0.19162613,108180.0,108170.0,0.13474443]
[1748507342237,0.19162613,108180.0,108170.0,0.11753897]
[1748507342455,0.19162613,108180.0,108170.0,0.13474458]
[1748507342673,0.21792613,108180.0,108170.0,0.13474458]
[1748507342899,0.19792613,108180.0,108170.0,0.13474458]
[1748507343115,0.19792613,108180.0,108170.0,0.01753897]
[1748507343365,0.19792613,108180.0,108170.0,0.03474711]
[1748507344001,0.19792613,108180.0,108170.0,0.03474841]
[1748507344217,0.19792613,108180.0,108170.0,0.01753897]
[1748507344866,0.19792613,108180.0,108170.0,0.06753897]
[1748507345075,0.19792613,108180.0,108170.0,0.08474924]
[1748507345284,0.19792613,108180.0,108170.0,0.08474938]
[1748507345975,0.19792613,108180.0,108170.0,0.09527823]
[1748507346190,0.19792613,108180.0,108170.0,0.09527926]
[1748507346396,0.19792613,108180.0,108170.0,0.07806782]
[1748507346608,0.14592613,108180.0,108170.0,0.09528113]
[1748507346821,0.17342613,108180.0,108170.0,0.09528113]
[1748507347678,0.14592613,108180.0,108170.0,0.09528542]
[1748507348081,0.14592613,108180.0,108170.0,0.07806782]
[1748507348307,0.14592613,108180.0,108170.0,0.09528559]
[1748507349425,0.14592613,108180.0,108170.0,0.09528555]
[1748507349671,0.14592613,108180.0,108170.0,0.07806782]
[1748507350133,0.15282613,108180.0,108170.0,0.07806782]
[1748507350351,0.15282613,108180.0,108170.0,0.09528556]
[1748507351458,0.12592613,108180.0,108170.0,0.09528556]
[1748507351664,0.12592613,108180.0,108170.0,0.09528558]
[1748507353694,0.12592613,108180.0,108170.0,0.09528562]
[1748507353913,0.12592613,108180.0,108170.0,0.07806782]
[1748507354123,0.12592613,108180.0,108170.0,0.09528562]
[1748507355612,0.12592613,108180.0,108170.0,0.09528552]
[1748507356537,0.12592613,108180.0,108170.0,0.09528554]
[1748507357170,0.10592613,108180.0,108170.0,0.09528567]
[1748507358254,0.10592613,108180.0,108170.0,0.09528569]
[1748507359112,0.10592613,108180.0,108170.0,0.09528586]
[1748507359322,0.10592613,108180.0,108170.0,0.09528587]
[1748507359541,0.10592613,108180.0,108170.0,0.09528604]
[1748507360579,0.10592613,108180.0,108170.0,0.07806782]
[1748507360784,0.10592613,108180.0,108170.0,0.09528631]
[1748507360994,0.10592613,108180.0,108170.0,0.08738928]
[1748507361224,0.10592613,108180.0,108170.0,0.09529253]
[1748507362534,0.10592613,108180.0,108170.0,0.09529318]
[1748507362751,0.10592613,108180.0,108170.0,0.07807404]
[1748507363368,0.10592613,108180.0,108170.0,0.09529317]
[1748507363619,0.10592613,108180.0,108170.0,0.09529302]
[1748507364269,0.08592613,108180.0,108170.0,0.09529302]
[1748507364714,0.08592613,108180.0,108170.0,0.095293]
[1748507364949,0.08592613,108180.0,108170.0,0.08476415]
[1748507365387,0.08592613,108180.0,108170.0,0.08476426]
[1748507365802,0.08592613,108180.0,108170.0,0.08476412]
[1748507367085,0.08592613,108180.0,108170.0,0.08476416]
[1748507367303,0.08592613,108180.0,108170.0,0.09529301]
[1748507368911,0.08592613,108180.0,108170.0,0.09529295]
[1748507369675,0.08592613,108180.0,108170.0,0.09529288]
[1748507369893,0.08592613,108180.0,108170.0,0.09529286]
[1748507370343,0.08592613,108180.0,108170.0,0.09529285]
[1748507371187,0.08592613,108180.0,108170.0,0.09529291]
[1748507371405,0.06592613,108180.0,108170.0,0.08476406]
[1748507372038,0.06592613,108180.0,108170.0,0.06754523]
[1748507372252,0.06592613,108180.0,108170.0,0.08476401]
[1748507372691,0.06592613,108180.0,108170.0,0.084764]
[1748507372908,0.06592613,108180.0,108170.0,0.08476397]
[1748507373993,0.06592613,108180.0,108170.0,0.06754519]
[1748507374207,0.06592613,108180.0,108170.0,0.07807404]
[1748507374419,0.06592613,108180.0,108170.0,0.09529275]
[1748507374840,0.06592613,108180.0,108170.0,0.09529273]
[1748507375935,0.06592613,108180.0,108170.0,0.09529271]
[1748507376806,0.09292613,108180.0,108170.0,0.09529271]
[1748507377033,0.09292613,108180.0,108170.0,0.09529284]
[1748507377242,0.06592613,108180.0,108170.0,0.09529284]
[1748507378313,0.06592613,108180.0,108170.0,0.09529307]
[1748507378526,0.05592613,108180.0,108170.0,0.07807414]
[1748507378748,0.05592613,108180.0,108170.0,0.09529316]
[1748507380005,0.05592613,108180.0,108170.0,0.09529285]
[1748507380694,0.05592613,108180.0,108170.0,0.09529286]
[1748507381345,0.05592613,108180.0,108170.0,0.09529274]
[1748507381794,0.05592613,108180.0,108170.0,0.07807414]
[1748507381991,0.05592613,108180.0,108170.0,0.09529274]
[1748507382841,0.05592613,108180.0,108170.0,0.09529247]
[1748507384097,0.05592613,108180.0,108170.0,0.09529249]
[1748507384432,0.05592613,108180.0,108170.0,0.09529241]
[1748507384640,0.05592613,108180.0,108170.0,0.07807396]
[1748507384855,0.05592613,108180.0,108170.0,0.08476358]
[1748507385056,0.05592613,108180.0,108170.0,0.0847642]
[1748507385420,0.24769015,108190.0,108170.0,0.08476433]
[1748507385603,0.18487705,108180.0,108170.0,0.08476433]
[1748507386062,0.18487705,108180.0,108170.0,0.08476352]
[1748507386323,0.18487705,108180.0,108170.0,0.07512158]
[1748507386731,0.18487705,108180.0,108170.0,0.07912158]
[1748507386934,0.18487705,108180.0,108170.0,0.05790317]
[1748507387136,0.18487705,108180.0,108170.0,0.07912104]
[1748507388469,0.18487705,108180.0,108170.0,0.06190317]
[1748507388710,0.18487705,108180.0,108170.0,0.07912071]
[1748507389811,0.18487705,108180.0,108170.0,0.06190317]
[1748507390025,0.18487705,108180.0,108170.0,0.07912042]
[1748507390967,0.18487705,108180.0,108170.0,0.07912019]
[1748507391378,0.18487705,108180.0,108170.0,0.07911937]
[1748507391762,0.18487705,108180.0,108170.0,0.07911919]
[1748507392565,0.16487705,108180.0,108170.0,0.06190235]
[1748507392770,0.16487705,108180.0,108170.0,0.07911919]
[1748507394630,0.16487705,108180.0,108170.0,0.07911915]
[1748507394819,0.16487705,108180.0,108170.0,0.07911904]
[1748507395073,0.16487705,108180.0,108170.0,0.07121669]
[1748507395277,0.16487705,108180.0,108170.0,0.07911895]
[1748507395673,0.16487705,108180.0,108170.0,0.054]
[1748507396030,0.16487705,108180.0,108170.0,0.07121658]
[1748507396835,0.16487705,108180.0,108170.0,0.07121652]
[1748507397492,0.16487705,108180.0,108170.0,0.054]
[1748507397703,0.16487705,108180.0,108170.0,0.07911879]
[1748507399118,0.16487705,108180.0,108170.0,0.07121652]
[1748507399770,0.14487705,108180.0,108170.0,0.07911881]
[1748507400094,0.14487705,108180.0,108170.0,0.06190229]
[1748507400304,0.14487705,108180.0,108170.0,0.07911873]
[1748507400736,0.48487705,108180.0,108170.0,0.0791188]
[1748507401974,0.53907705,108180.0,108170.0,0.0291188]
[1748507402381,0.22143867,108170.0,108160.0,0.01053668]
[1748507402625,0.22143867,108170.0,108160.0,0.01727304]
[1748507402626,0.26871067,108170.0,108160.0,0.01727304]
[1748507402871,0.24813867,108170.0,108160.0,0.01727304]
[1748507403098,0.24813867,108170.0,108160.0,4.908e-05]
[1748507404072,0.24813867,108170.0,108160.0,0.00204908]
[1748507406450,0.58813867,108170.0,108160.0,0.00204908]
[1748507406678,0.56813867,108170.0,108160.0,0.00204908]
[1748507407133,0.5773832,108170.0,108160.0,0.00204908]
[1748507409511,0.5773832,108170.0,108160.0,4.908e-05]
[1748507409729,0.5793832,108170.0,108160.0,4.908e-05]
[1748507412195,0.6293832,108170.0,108160.0,4.908e-05]
[1748507413732,0.6093832,108170.0,108160.0,4.908e-05]
[1748507416358,0.6193832,108170.0,108160.0,0.00304908]
[1748507420847,0.5993832,108170.0,108160.0,0.00304908]
[1748507421900,0.5893832,108170.0,108160.0,0.00304908]
[1748507423288,0.6171372,108170.0,108160.0,0.00304908]
[1748507423957,0.5893832,108170.0,108160.0,0.00304908]
[1748507424166,0.6805832,108170.0,108160.0,0.00304908]
[1748507425679,0.6803832,108170.0,108160.0,0.00304908]
[1748507427946,0.6603832,108170.0,108160.0,0.00304908]
[1748507435114,0.6403832,108170.0,108160.0,0.00304908]
[1748507437046,0.5903832,108170.0,108160.0,0.00304908]
[1748507437302,0.6403832,108170.0,108160.0,0.00304908]
[1748507437504,0.5903832,108170.0,108160.0,0.00304908]
[1748507437718,0.6403832,108170.0,108160.0,0.00304908]
[1748507439087,0.6403832,108170.0,108130.0,0.01053668]
[1748507439088,5.6703832,108170.0,108130.0,0.01053668]
[1748507439297,0.19421049,108130.0,108120.0,0.054]
[1748507439509,0.19421049,108130.0,108120.0,0.07983901]
[1748507440170,0.19421049,108130.0,108120.0,0.07984227]
[1748507440390,0.19421049,108130.0,108120.0,0.07984383]
[1748507440607,0.19421049,108130.0,108120.0,0.07984395]
[1748507440821,0.19421049,108130.0,108120.0,0.07993458]
[1748507441044,0.19421049,108130.0,108120.0,0.08293458]
[1748507441505,0.19521049,108130.0,108120.0,0.09193458]
[1748507441974,0.19521049,108130.0,108120.0,0.07470054]
[1748507442185,0.17521049,108130.0,108120.0,0.09192037]
[1748507442401,0.17521049,108130.0,108120.0,0.09191445]
[1748507443511,0.17521049,108130.0,108120.0,0.03790429]
[1748507443726,0.17521049,108130.0,108120.0,0.02069544]
[1748507443937,0.17521049,108130.0,108120.0,0.03790408]
[1748507444347,0.17521049,108130.0,108120.0,0.03790226]
[1748507444570,0.17521049,108130.0,108120.0,0.01209063]
[1748507444785,0.17521049,108130.0,108120.0,0.03789849]
[1748507444786,0.22721049,108130.0,108120.0,0.03789849]
[1748507444997,0.31721049,108130.0,108120.0,0.0288991]
[1748507445213,0.31721049,108130.0,108120.0,0.00309063]
[1748507445430,0.31821049,108130.0,108120.0,0.03290095]
[1748507445890,0.31821049,108130.0,108120.0,0.03290097]
[1748507446322,0.31821049,108130.0,108120.0,0.02990097]
[1748507446742,0.31821049,108130.0,108120.0,0.03090097]
[1748507446952,0.31721049,108130.0,108120.0,0.02590097]
[1748507447163,0.31721049,108130.0,108120.0,9.063e-05]
[1748507447372,0.31721049,108130.0,108120.0,0.01268887]
[1748507447373,0.31821049,108130.0,108120.0,0.01268887]
[1748507447796,0.31821049,108130.0,108120.0,0.02988536]
[1748507448012,0.31821049,108130.0,108120.0,0.02987993]
[1748507448447,0.31821049,108130.0,108120.0,0.02988044]
[1748507448657,0.31821049,108130.0,108120.0,0.02988048]
[1748507448877,0.31821049,108130.0,108120.0,0.02988065]
[1748507449090,0.29821049,108130.0,108120.0,0.02988065]
[1748507449304,0.29821049,108130.0,108120.0,0.02987909]
[1748507449738,0.29821049,108130.0,108120.0,0.02987794]
[1748507449958,0.29821049,108130.0,108120.0,0.02127846]
[1748507450171,0.29821049,108130.0,108120.0,0.02987237]
[1748507450820,0.63821049,108130.0,108120.0,0.02987237]
[1748507451246,0.63821049,108130.0,108120.0,0.01268454]
[1748507451753,0.15521049,108130.0,108120.0,0.07547325]
[1748507451983,0.15521049,108130.0,108120.0,0.08406391]
[1748507452177,0.15521049,108130.0,108120.0,0.05829063]
[1748507452431,0.15521049,108130.0,108120.0,0.08405952]
[1748507452857,0.15521049,108130.0,108120.0,0.08406136]
[1748507453276,0.15521049,108130.0,108120.0,0.07547112]
[1748507453483,0.15521049,108130.0,108120.0,0.08406029]
[1748507453693,0.15521049,108130.0,108120.0,0.07547036]
[1748507453904,0.15521049,108130.0,108120.0,0.08405917]
[1748507455190,0.15521049,108130.0,108120.0,0.17511728]
[1748507456073,0.15521049,108130.0,108120.0,0.17511812]
[1748507456292,0.15521049,108130.0,108120.0,0.1751198]
[1748507457465,0.15521049,108130.0,108120.0,0.1751229]
[1748507457908,0.15521049,108130.0,108120.0,0.17512289]
[1748507458570,0.15521049,108130.0,108120.0,0.17512674]
[1748507459003,0.15521049,108130.0,108120.0,0.17512968]
[1748507459251,0.15521049,108130.0,108120.0,0.17513113]
[1748507459661,0.15521049,108130.0,108120.0,0.17513112]
[1748507459881,0.15521049,108130.0,108120.0,0.17513275]
[1748507460341,0.15521049,108130.0,108120.0,0.17513603]
[1748507460558,0.15521049,108130.0,108120.0,0.16653898]
[1748507460861,0.15521049,108130.0,108120.0,0.14934458]
[1748507461011,0.49521049,108130.0,108120.0,0.10374491]
[1748507461284,0.49521049,108130.0,108120.0,0.1123464]
[1748507461487,0.52151049,108130.0,108120.0,0.11234659]
[1748507461696,0.52151049,108130.0,108120.0,0.10374754]
[1748507461911,0.52151049,108130.0,108120.0,0.12095349]
[1748507462161,0.49521049,108130.0,108120.0,0.12095349]
[1748507462350,0.49521049,108130.0,108120.0,0.17505286]
[1748507462563,0.49521049,108130.0,108120.0,0.16644997]
[1748507462769,0.49521049,108130.0,108120.0,0.17505266]
[1748507462981,0.49521049,108130.0,108120.0,0.17505285]
[1748507463203,0.49521049,108130.0,108120.0,0.17505323]
[1748507463417,0.49521049,108130.0,108120.0,0.16645035]
[1748507463635,0.49521049,108130.0,108120.0,0.17505323]
[1748507464290,0.49521049,108130.0,108120.0,0.15784746]
[1748507464512,0.49521049,108130.0,108120.0,0.12095374]
[1748507464731,0.49521049,108130.0,108120.0,0.10374768]
[1748507464946,0.49521049,108130.0,108120.0,0.1123508]
[1748507465180,0.49521049,108130.0,108120.0,0.12095391]
[1748507465863,0.15521049,108130.0,108120.0,0.4779509]
[1748507466074,0.16445836,108130.0,108120.0,0.86240606]